bitfinex/quotes_ETHUSD_20241101
["timestamp","ask_amount","ask_price","bid_price","bid_amount"]
[1730485112628,3.97368,2516.6,2516.1,4.52425]
[1730485112928,4.75514,2516.7,2516.3,0.55]
[1730485113130,0.7734,2516.4,2516.1,3.97428]
[1730485113350,0.7734,2516.4,2516.0,4.60390971]
[1730485113555,0.7734,2516.4,2516.0,9.51943927]
[1730485113753,0.7734,2516.4,2516.0,9.43995956]
[1730485114350,0.7734,2516.4,2516.1,3.97426]
[1730485114553,0.7734,2516.4,2516.2,4.52415]
[1730485114934,0.7734,2516.4,2516.3,3.97408]
[1730485116159,0.7693,2516.6,2516.2,0.62947674]
[1730485116346,0.7693,2516.6,2516.3,3.97402]
[1730485116548,0.7693,2516.6,2516.3,3.97408]
[1730485116926,0.7693,2516.6,2516.4,3.9739]
[1730485117340,0.7693,2516.6,2516.3,3.97408]
[1730485118741,0.7693,2516.6,2516.2,4.98460767]
[1730485119043,0.7693,2516.6,2516.3,3.97406]
[1730485119378,0.7693,2516.6,2516.3,4.94709677]
[1730485120043,0.7693,2516.6,2516.3,5.02656948]
[1730485120579,4.74292,2516.6,2516.3,1.05250948]
[1730485120889,4.74292,2516.6,2516.1,4.52431]
[1730485122895,4.74292,2516.6,2516.1,0.55]
[1730485123185,0.7693,2516.6,2516.2,3.97415]
[1730485123374,0.7693,2516.6,2516.3,0.452415]
[1730485124072,0.7693,2516.6,2516.3,4.426495]
[1730485124579,3.97341,2516.8,2516.4,4.60337313]
[1730485124580,0.8078,2516.8,2516.4,4.60337313]
[1730485124785,4.78111,2516.8,2516.4,4.60337313]
[1730485127075,3.97354,2516.7,2516.2,4.52413]
[1730485127276,3.97354,2516.7,2516.2,5.453268]
[1730485127277,3.97363,2516.6,2516.2,5.453268]
[1730485129081,5.22242877,2516.7,2516.3,3.97408]
[1730485129291,5.9763927,2516.8,2516.4,0.55]
[1730485130262,3.97352,2516.7,2516.4,0.55]
[1730485131675,5.22248877,2516.7,2516.4,0.55]
[1730485135885,5.9763027,2516.8,2516.4,4.52386]
[1730485136192,3.97351,2516.7,2516.4,0.55]
[1730485136614,2.0029927,2516.8,2516.4,4.52385]
[1730485136772,5.9762927,2516.8,2516.4,5.47450404]
[1730485137279,1.24896877,2516.9,2516.7,4.5233]
[1730485137479,1.24896877,2517.0,2516.7,0.62946287]
[1730485137686,1.24896877,2517.2,2516.9,0.7616]
[1730485137877,5.22171877,2517.2,2516.9,0.07945468]
[1730485138276,3.97275,2517.2,2516.9,0.07945468]
[1730485138809,7.94555,2517.2,2516.9,0.55]
[1730485139304,3.97284,2517.1,2516.9,0.55]
[1730485139471,3.97321,2516.9,2516.5,0.55]
[1730485139674,3.97333,2516.8,2516.5,0.55]
[1730485140079,3.97333,2516.8,2516.4,0.55]
[1730485140276,3.97321,2516.9,2516.4,0.55]
[1730485140277,3.97347,2516.7,2516.4,0.55]
[1730485140588,4.7396,2516.6,2516.1,4.74301]
[1730485140795,4.73953,2516.6,2516.1,4.74301]
[1730485141115,4.73953,2516.6,2516.1,5.73941917]
[1730485141516,0.8079,2516.5,2516.0,0.41480587]
[1730485141687,3.97468,2516.0,2515.7,11.60195588]
[1730485141878,3.97487,2515.8,2515.7,10.7701]
[1730485142073,3.97535,2515.5,2515.4,10.7701]
[1730485142277,6.23917989,2515.5,2515.4,10.7701]
[1730485142477,7.38552376,2515.5,2515.4,10.7701]
[1730485142712,7.17856264,2515.5,2515.4,10.7701]
[1730485142922,5.92959387,2515.5,2515.4,10.7701]
[1730485143084,4.78325,2515.5,2515.4,10.7701]
[1730485143278,6.03221877,2515.5,2515.4,10.7701]
[1730485143912,4.78325,2515.5,2515.4,10.7701]
[1730485147201,7.78325,2515.5,2515.4,10.7701]
[1730485147398,9.03221877,2515.5,2515.4,10.7701]
[1730485147613,9.5466861,2515.5,2515.4,10.7701]
[1730485152236,3.97686,2514.6,2514.3,0.55]
[1730485152392,3.97686,2514.6,2514.2,0.8317]
[1730485152594,3.97711,2514.4,2514.0,4.74801]
[1730485152833,7.95435,2514.4,2514.1,0.53697176]
[1730485153036,3.97734,2514.3,2514.1,0.53697176]
[1730485153332,3.97734,2514.3,2514.0,0.7703]
[1730485153528,3.97711,2514.4,2514.0,0.7703]
[1730485153692,3.97686,2514.6,2514.1,3.97749]
[1730485154236,3.97712,2514.4,2514.0,0.7703]
[1730485154920,3.97693,2514.5,2514.0,4.74799]
[1730485155104,3.97693,2514.5,2514.1,0.88054178]
[1730485155299,3.97709,2514.4,2514.1,0.88054178]
[1730485155494,7.95348,2514.7,2514.1,0.88054178]
[1730485155696,4.74198,2514.8,2514.2,4.52726]
[1730485156032,0.7654,2514.8,2514.3,3.97724]
[1730485156337,0.7654,2514.8,2514.4,0.452724]
[1730485156532,3.97668,2514.7,2514.4,0.452724]
[1730485156743,3.97668,2514.7,2514.2,0.55]
[1730485157041,6.93842057,2514.6,2514.0,0.7703]
[1730485157212,6.93842057,2514.6,2514.0,0.55]
[1730485157422,3.97693,2514.5,2513.9,0.55]
[1730485157628,3.97711,2514.4,2513.9,1.481392]
[1730485158439,7.95402,2514.5,2513.9,5.459252]
[1730485158654,3.97678,2514.6,2513.9,5.459192]
[1730485159005,3.97678,2514.6,2513.9,5.87381771]
[1730485159612,3.97678,2514.6,2514.0,3.97765]
[1730485159841,3.97678,2514.6,2514.1,0.98514677]
[1730485160134,3.97666,2514.7,2514.2,4.7732]
[1730485161113,3.97666,2514.7,2514.2,0.7958]
[1730485161542,3.97694,2514.5,2514.1,0.98514677]
[1730485161744,3.97694,2514.5,2513.9,0.55]
[1730485161745,0.8181,2514.4,2513.9,0.55]
[1730485162067,3.9774,2514.3,2513.8,0.55]
[1730485162222,3.97742,2514.2,2513.7,4.75669]
[1730485162946,3.97742,2514.2,2513.7,0.7786]
[1730485163317,3.97763,2514.1,2513.7,0.7786]
[1730485164049,0.7705,2513.9,2513.4,1.22329121]
[1730485164411,4.7484,2513.9,2513.4,0.8086]
[1730485166265,3.97805,2513.8,2513.4,0.8086]
[1730485166550,3.97805,2513.8,2513.2,3.97898]
[1730485166551,3.97822,2513.7,2513.3,0.55]
[1730485166758,3.97805,2513.8,2513.3,0.55]
[1730485166922,3.97805,2513.8,2513.1,4.80573]
[1730485166923,3.97829,2513.7,2513.1,4.80584]
[1730485167125,3.97844,2513.6,2513.1,4.80584]
[1730485167342,3.97804,2513.8,2513.2,3.97894]
[1730485167859,3.97821,2513.7,2513.2,3.97894]
[1730485168234,3.97845,2513.6,2513.1,0.8267]
[1730485168758,3.97845,2513.6,2513.1,4.80582]
[1730485168942,3.97845,2513.6,2513.1,5.684321]
[1730485169536,3.97858,2513.5,2513.1,0.8267]
[1730485170768,3.97811,2513.8,2513.2,0.55]
[1730485170925,3.97811,2513.8,2513.2,4.52892]
[1730485171126,3.97844,2513.6,2513.1,0.8267]
[1730485171975,7.95689,2513.6,2513.1,0.8267]
[1730485172133,3.97844,2513.6,2513.1,0.8267]
[1730485172325,3.97844,2513.6,2513.1,4.80573]
[1730485172527,7.95692,2513.6,2513.1,0.8267]
[1730485172726,3.97844,2513.6,2513.1,0.8267]
[1730485173066,3.97853,2513.5,2513.1,0.8267]
[1730485173365,0.7833,2513.4,2512.8,1.19331401]
[1730485173569,4.76204,2513.4,2512.9,3.97946]
[1730485173743,4.76204,2513.4,2512.8,8.73797]
[1730485174076,8.7408,2513.4,2512.8,8.73797]
[1730485174273,8.7408,2513.4,2512.8,5.73589284]
[1730485174274,3.97886,2513.3,2512.8,5.73589284]
[1730485175450,4.76204,2513.4,2512.8,5.73589284]
[1730485175651,0.7833,2513.4,2512.8,1.75637284]
[1730485175863,4.76207,2513.4,2512.9,3.97931]
[1730485176581,3.9789,2513.3,2512.8,5.73596284]
[1730485176874,3.9789,2513.3,2512.8,1.75637284]
[1730485176875,7.95785,2513.3,2512.8,1.75637284]
[1730485177048,3.9789,2513.3,2512.8,4.75851]
[1730485180878,4.76198,2513.4,2512.9,3.97945]
[1730485181179,4.76198,2513.4,2512.9,3.97934]
[1730485181378,8.74073,2513.4,2512.9,3.97934]
[1730485181578,4.76198,2513.4,2512.9,3.97934]
[1730485182363,8.74076,2513.4,2512.9,3.97934]
[1730485182774,4.76198,2513.4,2512.9,7.95873]
[1730485182975,4.76198,2513.4,2512.9,4.853103]
[1730485184471,3.97884,2513.3,2512.9,4.853103]
[1730485184672,3.97884,2513.3,2512.8,0.7789]
[1730485184673,3.979,2513.2,2512.8,4.75851]
[1730485184871,3.97884,2513.3,2512.8,4.75842]
[1730485185564,3.97884,2513.3,2512.8,4.75851]
[1730485185755,3.979,2513.2,2512.8,4.75851]
[1730485186638,3.97905,2513.2,2512.7,3.97976]
[1730485186756,3.97905,2513.2,2512.8,3.97961]
[1730485187159,7.95819,2513.2,2512.7,0.473846]
[1730485187613,7.95819,2513.2,2512.7,4.453606]
[1730485188110,4.76207,2513.4,2512.7,4.453606]
[1730485188288,4.76205,2513.4,2512.9,3.97939]
[1730485188595,4.76205,2513.4,2512.8,0.5212306]
[1730485188596,3.97895,2513.3,2512.8,8.4803606]
[1730485188804,3.97895,2513.3,2512.8,4.5007606]
[1730485189001,0.7833,2513.4,2512.6,0.7587]
[1730485189229,3.97968,2512.8,2512.2,3.98045]
[1730485189392,3.97998,2512.6,2512.2,4.79035]
[1730485189597,7.70767138,2513.0,2512.2,1.687014]
[1730485189795,7.70767138,2513.0,2512.2,0.8099]
[1730485189796,3.97995,2512.6,2512.2,0.8099]
[1730485190008,4.74105,2512.6,2512.1,3.98071]
[1730485190315,4.74105,2512.6,2512.1,3.98065]
[1730485190708,4.74105,2512.6,2512.2,3.98053]
[1730485190912,0.7611,2512.6,2512.2,3.98053]
[1730485191094,4.74105,2512.6,2512.1,3.98065]
[1730485191500,4.74105,2512.6,2512.2,3.98056]
[1730485191986,3.98011,2512.5,2512.0,4.74701]
[1730485192304,4.74105,2512.6,2512.0,5.619842]
[1730485192305,0.7611,2512.6,2512.0,5.619842]
[1730485192505,3.98018,2512.5,2512.0,5.619842]
[1730485192709,4.74106,2512.6,2512.1,3.98071]
[1730485193018,3.9801,2512.5,2512.1,3.98071]
[1730485193227,3.9801,2512.5,2512.0,5.619862]
[1730485193986,3.98052,2512.3,2511.8,4.74146]
[1730485194591,3.98063,2512.2,2511.8,0.7604]
[1730485194786,3.98073,2512.1,2511.8,0.7604]
[1730485195024,3.98073,2512.1,2511.6,3.9814]
[1730485195025,3.98096,2512.0,2511.5,0.7756]
[1730485195350,3.98136,2511.7,2511.3,0.41489093]
[1730485195634,3.98152,2511.6,2511.1,4.60512955]
[1730485195816,3.98168,2511.5,2511.1,3.9823]
[1730485196193,3.98184,2511.4,2511.0,0.7756]
[1730485196527,7.9638,2511.4,2510.9,3.9826]
[1730485196688,0.7931,2511.5,2510.8,0.7686]
[1730485196689,3.75927138,2511.5,2510.8,0.7686]
[1730485196894,3.98225,2511.2,2510.8,0.7686]
[1730485197208,7.9648,2511.1,2510.8,0.7686]
[1730485197411,3.9824,2511.1,2510.6,4.77179]
[1730485197585,3.98213,2511.3,2510.6,4.77179]
[1730485197788,3.98239,2511.1,2510.6,4.77179]
[1730485197992,3.98239,2511.1,2510.6,5.70959442]
[1730485198291,3.98184,2511.4,2510.8,3.98272]
[1730485198490,3.98211,2511.3,2510.8,3.98272]
[1730485198688,3.98219,2511.2,2510.7,3.98287]
[1730485198887,3.98239,2511.1,2510.6,4.92089442]
[1730485199211,3.98263,2510.9,2510.4,4.60630418]
[1730485199425,2.96617138,2512.5,2511.0,3.98247]
[1730485199734,4.80219,2512.6,2511.8,4.75841]
[1730485199890,3.98026,2512.4,2511.8,4.75841]
[1730485200089,0.8222,2512.6,2511.8,0.7773]
[1730485200289,3.9806,2512.2,2511.8,0.7773]
[1730485200526,4.37881,2512.1,2511.5,4.75885]
[1730485200728,0.39806,2512.1,2511.6,3.98149]
[1730485200902,0.8222,2512.4,2511.9,3.98096]
[1730485201101,0.8222,2512.4,2511.9,3.98098]
[1730485201494,0.8222,2512.6,2512.1,3.98071]
[1730485201697,0.8222,2512.9,2512.3,3.98033]
[1730485201937,4.80167,2512.9,2512.3,3.98033]
[1730485202092,0.878111,2512.8,2512.2,3.98048]
[1730485202297,0.878111,2512.8,2512.3,3.98039]
[1730485202492,0.878111,2512.8,2512.2,3.98048]
[1730485202493,4.857731,2512.8,2512.2,3.98048]
[1730485202820,4.857731,2512.8,2512.3,3.98038]
[1730485202821,3.878111,2512.8,2512.3,3.98038]
[1730485203628,3.878111,2512.8,2512.1,2.96617138]
[1730485203629,0.8222,2512.9,2512.6,3.97994]
[1730485203896,3.97938,2513.0,2512.4,4.75744]
[1730485204095,3.97947,2512.9,2512.4,4.75744]
[1730485204303,0.878094,2512.9,2512.5,3.98005]
[1730485204716,0.878094,2512.9,2512.5,3.98001]
[1730485205140,0.878094,2512.9,2512.7,3.97969]
[1730485205342,3.0,2513.0,2512.7,3.97969]
[1730485205553,3.97899,2513.2,2512.7,3.97969]
[1730485206504,3.97918,2513.1,2512.6,3.9798]
[1730485207004,3.0,2513.3,2512.9,3.97936]
[1730485207206,3.97899,2513.2,2512.6,1.3681]
[1730485207404,3.0,2513.3,2512.3,0.8181]
[1730485207405,3.97954,2512.9,2512.3,0.8181]
[1730485207641,3.97988,2512.7,2512.2,3.98045]
[1730485207806,0.8204,2512.7,2512.3,3.98038]
[1730485208017,4.80021,2512.7,2512.2,7.96093]
[1730485208219,4.80021,2512.7,2512.2,3.98045]
[1730485208453,0.877986,2512.6,2512.3,3.98039]
[1730485208621,0.8204,2512.7,2512.4,3.9801]
[1730485208812,3.0,2512.9,2512.5,3.97998]
[1730485209012,4.79982,2513.0,2512.5,7.95998]
[1730485209237,4.79982,2513.0,2512.5,3.97998]
[1730485209445,0.8204,2513.0,2512.5,7.72745138]
[1730485209755,3.97948,2512.9,2512.5,4.76128]
[1730485210253,4.5292579,2512.9,2512.3,3.98029]
[1730485210465,4.5292579,2512.9,2512.2,0.7878]
[1730485210466,3.97973,2512.8,2512.2,0.7878]
[1730485210625,0.5497779,2512.9,2512.3,3.98028]
[1730485210825,3.97964,2512.8,2512.3,3.98028]
[1730485211153,3.97995,2512.6,2512.2,3.75397138]
[1730485211335,3.98012,2512.5,2512.2,0.7878]
[1730485211536,4.377945,2512.6,2512.2,0.7878]
[1730485211749,0.397995,2512.6,2512.2,7.73445138]
[1730485212154,4.5293379,2512.9,2512.3,3.98037]
[1730485212452,3.5497779,2512.9,2512.5,3.98001]
[1730485212658,7.5292679,2512.9,2512.4,3.98015]
[1730485212831,4.5292679,2512.9,2512.4,3.98015]
[1730485213026,3.97962,2512.8,2512.4,3.98015]
[1730485213360,3.97978,2512.7,2512.3,0.55]
[1730485213737,0.93292179,2512.8,2512.3,4.5304]
[1730485213935,4.91256179,2512.8,2512.3,4.5304]
[1730485214240,4.91256179,2512.8,2512.2,4.76826]
[1730485214241,0.7627,2513.3,2512.9,3.97943]
[1730485214430,4.74154,2513.3,2512.8,3.97961]
[1730485214944,3.97884,2513.3,2512.9,3.97944]
[1730485215132,4.75749,2513.6,2512.9,3.97944]
[1730485215330,3.97886,2513.3,2512.9,3.97944]
[1730485216072,4.57862928,2513.4,2512.9,7.95875]
[1730485216269,8.55739928,2513.4,2512.9,3.97936]
[1730485216440,8.55740928,2513.4,2512.9,3.97936]
[1730485216646,3.97852,2513.5,2513.0,4.79638]
[1730485216967,3.97867,2513.4,2513.0,0.8172]
[1730485217383,3.97836,2513.6,2513.0,0.8172]
[1730485217532,3.9786,2513.5,2513.0,4.79649]
[1730485217734,3.97891,2513.3,2513.0,0.8172]
[1730485217967,3.97905,2513.2,2512.8,0.7854]
[1730485218132,3.97934,2513.0,2512.5,0.55]
[1730485218466,3.97978,2512.7,2512.4,0.7642]
[1730485218842,3.98005,2512.6,2512.4,0.7642]
[1730485219046,3.98035,2512.4,2512.1,0.7642]
[1730485219268,3.98081,2512.1,2511.8,1.63403254]
[1730485219466,3.98057,2512.2,2511.8,1.63403254]
[1730485219467,3.98089,2512.0,2511.8,1.63403254]
[1730485219670,3.98067,2512.2,2511.8,1.63403254]
[1730485220055,7.96135,2512.2,2511.8,1.63403254]
[1730485220260,7.96137,2512.2,2511.8,1.63403254]
[1730485220499,3.98076,2512.1,2511.8,1.63403254]
[1730485220663,3.98067,2512.2,2511.8,1.63403254]
[1730485220664,0.8005,2512.3,2511.8,1.63403254]
[1730485220863,3.98043,2512.3,2511.8,1.63403254]
[1730485221198,3.98058,2512.2,2511.8,1.63403254]
[1730485221703,3.98093,2512.0,2511.8,0.82753254]
[1730485221992,7.96197,2512.0,2511.8,0.82753254]
[1730485222200,3.98105,2511.9,2511.8,0.82753254]
[1730485222668,4.77695,2511.9,2511.8,0.82753254]
[1730485225200,3.98105,2511.9,2511.8,0.82753254]
[1730485225714,3.98075,2512.1,2511.8,0.82753254]
[1730485225858,3.9809,2512.0,2511.5,0.7691]
[1730485226057,3.98057,2512.2,2511.6,0.873266]
[1730485226264,3.98097,2512.0,2511.6,0.873266]
[1730485226695,3.98097,2512.0,2511.2,0.4142743]
[1730485226696,3.98105,2511.9,2511.2,0.4142743]
[1730485226892,0.8236,2512.0,2510.6,0.8082]
[1730485227173,0.8236,2511.4,2510.6,4.7913]
[1730485227373,3.98213,2511.3,2510.7,3.98291]
[1730485227615,3.98218,2511.2,2510.6,0.8082]
[1730485227794,3.98218,2511.2,2510.6,4.79129]
[1730485227997,3.98192,2511.4,2510.8,3.98271]
[1730485228308,3.98185,2511.4,2510.9,0.7604]
[1730485229510,3.98195,2511.4,2510.9,0.7604]
[1730485229808,3.98173,2511.5,2510.9,0.7604]
[1730485230125,3.98175,2511.5,2511.0,0.55]
[1730485230288,3.98157,2511.6,2511.0,1.079302]
[1730485230482,3.98157,2511.6,2511.0,5.061772]
[1730485230700,3.98157,2511.6,2511.0,1.079302]
[1730485230884,3.98178,2511.5,2511.2,0.55]
[1730485231084,3.9816,2511.6,2511.2,0.55]
[1730485232013,3.98153,2511.6,2511.2,0.55]
[1730485232669,3.98169,2511.5,2511.2,0.55]
[1730485232872,3.98153,2511.6,2510.9,0.7604]
[1730485233071,3.98176,2511.5,2511.0,0.55]
[1730485233509,3.98153,2511.6,2511.0,0.55]
[1730485233975,3.98139,2511.7,2510.9,0.7604]
[1730485234182,3.98303,2510.7,2510.4,0.41425426]
[1730485234388,4.76032,2510.9,2510.4,0.41425426]
[1730485234700,3.98243,2511.1,2510.4,3.98332]
[1730485234892,3.98243,2511.1,2510.5,0.78587378]
[1730485235237,3.98274,2510.9,2510.2,0.8008]
[1730485235387,3.98318,2510.6,2510.2,0.8008]
[1730485235591,3.98327,2510.5,2509.9,0.89455077]
[1730485235791,4.76073,2510.6,2509.9,0.89455077]
[1730485236459,3.98304,2510.7,2510.0,3.98405]
[1730485236722,3.98304,2510.7,2510.1,0.49582816]
[1730485236934,4.77857,2510.9,2510.0,3.98396]
[1730485237088,3.98277,2510.9,2510.2,3.98367]
[1730485237720,3.98243,2511.1,2510.3,4.53357]
[1730485238075,3.98243,2511.1,2510.3,0.55374484]
[1730485238206,3.98262,2511.0,2510.5,0.55]
[1730485238390,3.98265,2510.9,2510.5,0.55]
[1730485238591,1.24140276,2511.8,2510.3,0.00374484]
[1730485238592,3.79574978,2511.6,2510.3,0.00374484]
[1730485238792,3.79574978,2511.6,2510.1,0.7907]
[1730485238793,3.98321,2510.6,2510.5,0.09833569]
[1730485239016,3.98321,2510.6,2510.1,0.7907]
[1730485239236,3.98192,2511.4,2510.6,3.98296]
[1730485239393,0.8049,2511.5,2510.9,0.8021]
[1730485239595,4.74189,2511.8,2511.0,3.98247]
[1730485239894,4.74182,2511.8,2511.0,7.8578663]
[1730485240138,3.9815,2511.7,2511.1,0.55]
[1730485240292,0.7606,2511.8,2511.0,3.79574978]
[1730485240293,0.7606,2511.8,2511.0,0.55]
[1730485240495,0.7606,2511.8,2511.0,4.53239]
[1730485240496,3.98137,2511.7,2511.0,4.53239]
[1730485240720,0.7606,2511.8,2511.2,0.55]
[1730485240941,3.98166,2511.6,2511.0,0.55]
[1730485241092,3.98138,2511.7,2511.0,0.55]
[1730485241594,0.7606,2511.8,2511.0,0.55]
[1730485241804,0.7606,2511.8,2511.2,0.55]
[1730485242005,4.74182,2511.8,2511.3,0.55]
[1730485242205,0.398035,2512.4,2511.5,0.55]
[1730485242206,3.9809,2512.0,2511.5,0.55]
[1730485242402,4.74972,2512.1,2511.5,0.55]
[1730485242403,0.7689,2512.1,2511.7,0.55]
[1730485242645,3.98049,2512.3,2511.5,0.55]
[1730485242646,4.74932,2512.3,2512.0,0.55]
[1730485242945,8.72989,2512.3,2512.0,0.55]
[1730485243104,0.398035,2512.4,2512.0,0.55]
[1730485243444,4.74909,2512.5,2512.0,0.55]
[1730485243445,3.97995,2512.6,2512.0,0.55]
[1730485243910,3.98017,2512.5,2512.0,0.55]
[1730485244113,3.98034,2512.4,2512.0,0.55]
[1730485244329,3.98017,2512.5,2512.0,0.55]
[1730485244709,3.98019,2512.5,2512.0,0.55]
[1730485245010,0.7689,2512.8,2512.2,3.79574978]
[1730485245011,3.97978,2512.7,2512.2,3.79574978]
[1730485245211,4.74861,2512.8,2512.2,3.79574978]
[1730485245212,4.74861,2512.8,2512.3,0.55]
[1730485245413,3.97971,2512.8,2512.3,0.55]
[1730485245907,7.95942,2512.8,2512.3,0.55]
[1730485246108,3.97989,2512.7,2512.3,0.55]
[1730485246303,3.97931,2513.0,2512.5,4.34574978]
[1730485246757,1.166791,2513.3,2512.5,4.34574978]
[1730485247045,0.397891,2513.3,2512.9,1.3536]
[1730485248256,3.97835,2513.6,2513.2,0.55]
[1730485248419,0.7926,2513.7,2513.2,0.55]
[1730485248420,3.9788,2513.4,2513.2,0.55]
[1730485248743,0.7926,2513.7,2512.9,0.8036]
[1730485248744,3.9789,2513.3,2513.0,0.55]
[1730485248942,0.39789,2513.2,2513.0,0.55]
[1730485249252,0.39789,2513.2,2512.8,0.55]
[1730485249841,0.39789,2513.2,2512.8,8.32534978]
[1730485250038,3.97851,2513.5,2512.8,4.34574978]
[1730485250240,7.95716,2513.5,2512.8,4.34574978]
[1730485250458,3.97868,2513.4,2512.8,4.34574978]
[1730485253371,3.97862,2513.5,2512.8,0.55]
[1730485253526,0.795697,2513.4,2512.8,4.34574978]
[1730485253928,3.97868,2513.4,2512.8,4.34574978]
[1730485254977,7.95745,2513.4,2512.8,4.34574978]
[1730485255159,3.97868,2513.4,2512.8,4.34574978]
[1730485255975,3.97883,2513.3,2512.8,4.34574978]
[1730485256179,3.97868,2513.4,2512.8,4.34574978]
[1730485256339,0.397868,2513.3,2512.8,4.34574978]
[1730485256540,3.97906,2513.2,2512.8,0.55]
[1730485256735,0.397868,2513.3,2512.8,0.55]
[1730485257401,3.97845,2513.6,2512.9,3.97945]
[1730485257588,3.97845,2513.6,2513.0,0.55]
[1730485257983,3.97845,2513.6,2512.9,0.55]
[1730485258191,1.24140276,2513.9,2513.0,0.7757]
[1730485258409,4.4183118,2514.4,2513.0,0.7757]
[1730485258410,1.86396478,2514.4,2513.8,0.7757]
[1730485258609,0.62256202,2514.4,2514.2,0.55]
[1730485258901,0.62256202,2514.4,2514.3,1.3257]
[1730485259059,3.9763,2514.9,2514.4,0.55]
[1730485259259,0.7897,2514.6,2514.4,0.55]
[1730485259486,0.7897,2514.6,2513.9,0.55]
[1730485259487,3.97736,2514.3,2513.9,0.55]
[1730485259668,1.266346,2514.6,2513.4,0.55]
[1730485259669,4.74791,2514.0,2513.4,0.55]
[1730485260000,3.97812,2513.8,2513.3,0.8115]
[1730485260361,3.97812,2513.8,2513.0,0.8115]
[1730485260565,4.376012,2513.7,2513.0,0.8115]
[1730485261079,0.397812,2513.7,2513.0,0.8115]
[1730485261407,3.97835,2513.6,2513.0,0.8115]
[1730485261620,0.397812,2513.7,2513.2,3.9789]
[1730485261896,0.7701,2514.0,2513.3,3.97883]
[1730485262095,0.7701,2514.2,2513.5,4.78999]
[1730485262271,0.7701,2514.2,2513.5,0.8115]
[1730485262478,3.97772,2514.0,2513.6,0.55]
[1730485262674,3.97756,2514.1,2513.6,0.55]
[1730485262969,4.74757,2514.2,2513.4,4.52859]
[1730485263183,4.850063,2514.1,2513.3,0.55]
[1730485263362,4.850063,2514.1,2513.3,4.52874]
[1730485263363,0.872493,2514.1,2513.3,4.52874]
[1730485264184,4.850153,2514.1,2513.3,4.52874]
[1730485264563,0.872493,2514.1,2513.3,4.52882]
[1730485264768,0.5620083,2514.0,2513.4,3.97857]
[1730485264999,0.5620083,2514.0,2513.5,0.55]
[1730485265490,0.5620083,2514.0,2513.5,4.52849]
[1730485265688,0.7701,2514.2,2513.5,4.52849]
[1730485265875,4.74751,2514.2,2513.5,0.55]
[1730485266075,0.7701,2514.2,2513.6,0.55]
[1730485266480,0.7701,2514.2,2513.8,0.55]
[1730485267191,4.74757,2514.2,2513.8,0.55]
[1730485267388,3.97703,2514.5,2513.8,0.55]
[1730485267698,4.453416,2514.6,2513.8,4.52803]
[1730485267910,0.476646,2514.6,2513.8,4.52791]
[1730485268123,4.79624,2514.7,2513.8,0.55]
[1730485268124,0.8195,2514.7,2513.8,0.55]
[1730485268271,0.8195,2514.7,2514.1,0.55]
[1730485268792,4.74297,2514.9,2514.2,1.3408]
[1730485268998,0.7666,2514.9,2514.2,1.3408]
[1730485269169,3.97646,2514.8,2514.2,1.3408]
[1730485269364,4.450926,2514.7,2514.2,1.3408]
[1730485269607,0.474306,2514.7,2514.2,1.3408]
[1730485270280,8.72102,2514.4,2514.0,0.55]
[1730485270624,8.72101,2514.4,2513.8,0.55]
[1730485270901,4.7438,2514.4,2513.8,0.55]
[1730485271085,0.47438,2514.3,2513.8,0.55]
[1730485271287,0.47438,2514.3,2513.4,3.97866]
[1730485271288,3.97767,2514.1,2513.4,0.7578]
[1730485271494,3.8284,2514.2,2513.1,0.7578]
[1730485271665,0.8284,2513.7,2513.1,0.7578]
[1730485271885,3.97845,2513.6,2513.1,0.7578]
[1730485272086,4.856949,2513.6,2513.1,0.7578]
[1730485272353,4.856949,2513.6,2512.7,4.73586]
[1730485272354,3.97851,2513.5,2512.7,4.73586]
[1730485272623,3.97876,2513.4,2512.7,0.7561]
[1730485273123,3.97885,2513.3,2512.7,0.7561]
[1730485273283,3.97875,2513.4,2512.7,0.7561]
[1730485273487,4.376785,2513.3,2512.7,0.7561]
[1730485274808,0.878499,2513.6,2512.8,3.97953]
[1730485275014,3.97859,2513.5,2512.7,0.7561]
[1730485275216,3.97876,2513.4,2512.8,0.55]
[1730485277333,3.97895,2513.3,2512.8,0.55]
[1730485277540,3.97905,2513.2,2512.8,0.55]
[1730485277829,4.77479,2513.2,2512.7,0.7561]
[1730485278032,0.878499,2513.6,2512.1,4.77985]
[1730485278033,3.97954,2512.9,2512.1,4.77985]
[1730485278197,0.776,2513.5,2512.1,0.7992]
[1730485278198,0.776,2513.4,2512.1,0.7992]
[1730485278403,3.97956,2512.9,2512.2,3.98054]
[1730485278638,0.776,2513.4,2512.3,4.30227057]
[1730485278838,4.75467,2513.4,2512.6,3.97981]
[1730485279630,3.97883,2513.3,2512.5,0.55]
[1730485280510,7.95774,2513.3,2512.5,4.52999]
[1730485280709,3.97906,2513.2,2512.5,0.55]
[1730485281041,3.97906,2513.2,2512.5,1.50519874]
[1730485281216,3.97906,2513.2,2512.5,5.48527874]
[1730485281647,4.75478,2513.4,2512.6,4.80592]
[1730485281938,3.97878,2513.4,2512.7,0.55]
[1730485282241,3.97885,2513.3,2512.7,0.55]
[1730485283236,0.79575,2513.3,2512.7,0.55]
[1730485283445,3.97923,2513.1,2512.7,0.55]
[1730485283644,3.97961,2512.9,2512.7,0.55]
[1730485283813,7.95916,2512.9,2512.5,0.55]
[1730485284009,3.97968,2512.8,2512.4,0.8042]
[1730485284209,3.97948,2512.9,2512.4,0.8042]